bitfinex/quotes_ETHUSD_20240721
["timestamp","ask_amount","ask_price","bid_price","bid_amount"]
[1721584902672,3.02869726,3477.3,3475.9,2.87694]
[1721584902861,0.54707973,3477.2,3475.9,2.87694]
[1721584903265,0.54707973,3477.2,3475.8,2.87703]
[1721584903466,0.15282726,3477.3,3476.1,2.87671]
[1721584903696,0.15282726,3477.3,3476.2,0.55]
[1721584904406,0.15282726,3477.3,3475.3,3.0]
[1721584904407,0.15282726,3477.3,3475.9,0.55]
[1721584904878,0.15282726,3477.3,3476.4,2.87653]
[1721584905210,2.4421,3477.4,3476.4,2.87653]
[1721584905510,2.4421,3477.4,3475.9,0.55]
[1721584905511,2.4421,3477.4,3476.2,2.87667]
[1721584905695,2.4421,3477.4,3476.3,0.55]
[1721584905897,2.4421,3477.4,3476.0,2.87685]
[1721584906071,2.4421,3477.4,3476.2,2.8767]
[1721584906269,3.45775931,3478.1,3476.3,1.19267]
[1721584906544,6.31744089,3478.0,3476.3,1.19267]
[1721584906858,2.87545,3477.8,3476.3,1.19267]
[1721584907018,2.87555,3477.6,3476.3,0.55]
[1721584907207,5.31737,3478.0,3475.7,3.0]
[1721584907208,2.94758082,3477.5,3476.0,2.87686]
[1721584907410,2.94758082,3477.5,3476.1,3.0]
[1721584907625,2.94758082,3477.5,3475.8,3.0]
[1721584908108,0.58254931,3477.8,3475.8,3.0]
[1721584908309,0.46894361,3477.7,3476.1,2.87676]
[1721584908512,2.87571,3477.4,3476.0,2.87686]
[1721584908822,2.87556,3477.6,3476.1,2.87678]
[1721584909019,0.39703811,3477.7,3476.0,2.87686]
[1721584909406,0.39703811,3477.7,3476.2,2.87667]
[1721584909607,2.4421,3478.0,3476.6,2.87637]
[1721584909935,2.4421,3478.0,3476.6,2.87629]
[1721584910269,2.94677564,3478.4,3476.4,2.3298]
[1721584910408,3.0261663,3478.5,3477.0,2.87603]
[1721584910805,0.1513563,3478.5,3477.1,2.87595]
[1721584911004,0.69816593,3478.5,3477.2,2.87586]
[1721584911249,0.69816593,3478.5,3476.9,2.87609]
[1721584911432,0.69816593,3478.5,3477.0,3.0]
[1721584911433,0.1513563,3478.5,3477.0,3.0]
[1721584911641,2.87497,3478.3,3476.7,5.87626]
[1721584911841,0.1513563,3478.5,3476.8,0.55]
[1721584911842,0.07188825,3478.2,3476.8,0.55]
[1721584912044,2.87488,3478.4,3476.9,2.87611]
[1721584912352,2.87497,3478.3,3477.0,3.0]
[1721584912659,0.30982145,3478.2,3476.8,3.42612]
[1721584912858,0.30982145,3478.2,3476.9,3.0]
[1721584913067,2.87513,3478.1,3476.7,3.0]
[1721584913222,2.94718512,3478.0,3476.2,2.87668]
[1721584913556,2.87547,3477.7,3476.1,2.87678]
[1721584913765,2.87547,3477.7,3475.8,2.3298]
[1721584913766,0.287547,3477.6,3476.2,2.87666]
[1721584913918,0.287547,3477.6,3475.8,2.3298]
[1721584914146,3.381723,3478.2,3476.6,2.87635]
[1721584914362,3.30982145,3478.2,3476.4,2.87645]
[1721584914562,5.87514,3478.1,3475.8,5.20675]
[1721584914781,0.30982145,3478.2,3476.7,2.87624]
[1721584914940,3.20619215,3478.1,3476.5,2.87645]
[1721584915145,0.07189494,3478.0,3476.6,0.55]
[1721584915643,2.87529,3477.9,3476.6,0.55]
[1721584916173,0.07189494,3478.0,3476.4,3.55]
[1721584916392,2.87522,3478.0,3476.6,2.87636]
[1721584916547,0.74067001,3477.9,3476.7,0.55]
[1721584916748,2.87522,3478.0,3476.7,0.55]
[1721584916962,2.87506,3478.2,3476.6,2.87637]
[1721584917258,5.87515,3478.1,3476.7,0.55]
[1721584917570,3.0,3478.3,3476.7,0.55]
[1721584918175,0.1513563,3478.5,3476.9,2.87612]
[1721584918376,0.59007963,3478.4,3477.1,2.87592]
[1721584918697,0.59007963,3478.4,3476.9,2.87605]
[1721584918851,0.1513563,3478.5,3477.1,2.87594]
[1721584919057,0.1513563,3478.5,3477.2,2.87586]
[1721584919463,0.20227059,3478.5,3477.2,2.87586]
[1721584920300,0.20227059,3478.5,3477.0,5.87602]
[1721584920468,0.20227059,3478.5,3477.1,0.55]
[1721584920668,0.30769906,3478.4,3477.1,0.55]
[1721584921469,0.30769906,3478.4,3477.2,2.87586]
[1721584921686,0.20227059,3478.5,3477.3,0.55]
[1721584921988,0.20227059,3478.5,3477.3,3.42578]
[1721584922298,0.20227059,3478.5,3477.4,2.87571]
[1721584922503,0.20227059,3478.5,3477.5,3.0]
[1721584922702,0.20227059,3478.5,3477.3,3.42572]
[1721584922703,0.20227059,3478.5,3477.4,3.0]
[1721584922889,2.87532,3477.9,3476.5,2.87639]
[1721584923088,0.07189471,3477.8,3476.3,2.87654]
[1721584923289,0.05091429,3477.9,3476.5,2.87643]
[1721584923509,0.05091429,3477.9,3476.1,2.87677]
[1721584923779,0.05091429,3477.9,3476.2,2.87663]
[1721584924001,0.05091429,3477.9,3476.3,2.8766]
[1721584924208,0.07189835,3477.8,3476.4,2.87653]
[1721584924419,2.92621429,3477.9,3476.5,3.0]
[1721584924579,2.94728951,3477.8,3476.5,3.0]
[1721584924986,0.05091429,3477.9,3476.5,5.87645]
[1721584925190,0.35071161,3477.9,3476.9,2.8761]
[1721584925422,0.05091429,3477.9,3476.7,2.87628]
[1721584925712,0.05091429,3477.9,3476.5,3.0]
[1721584925875,0.05091429,3477.9,3476.4,3.0]
[1721584926083,2.4761,3477.6,3476.1,3.0]
[1721584926284,2.4761,3477.6,3476.5,2.87645]
[1721584926483,0.25270143,3477.5,3476.5,2.87645]
[1721584926706,0.25270143,3477.5,3476.2,3.0]
[1721584926707,0.25270143,3477.5,3476.6,2.87637]
[1721584926909,0.05091429,3477.8,3476.6,2.87632]
[1721584927118,0.1513563,3478.5,3477.1,2.87592]
[1721584927313,0.1513563,3478.5,3477.2,0.55]
[1721584927481,0.1513563,3478.5,3477.2,3.55]
[1721584927915,0.1513563,3478.5,3477.4,2.87563]
[1721584928133,0.1513563,3478.5,3477.5,3.42562]
[1721584928336,0.1513563,3478.5,3477.5,2.87562]
[1721584928979,0.1513563,3478.5,3477.6,2.87552]
[1721584929182,0.1513563,3478.5,3477.6,2.87547]
[1721584929583,0.1513563,3478.5,3477.4,2.87568]
[1721584929888,0.1513563,3478.5,3477.3,2.87572]
[1721584929889,0.1513563,3478.5,3477.5,3.42559]
[1721584930520,0.1513563,3478.5,3477.6,2.87551]
[1721584931331,0.1513563,3478.5,3477.6,0.630123]
[1721584931500,0.1513563,3478.5,3477.7,3.4254]
[1721584931832,0.1513563,3478.5,3477.8,3.0]
[1721584932031,0.1513563,3478.5,3477.9,0.55]
[1721584932323,0.1513563,3478.5,3477.8,3.0]
[1721584932536,0.1513563,3478.5,3477.8,5.87534]
[1721584932689,0.1513563,3478.5,3477.8,3.0]
[1721584932890,0.1513563,3478.5,3477.6,3.0]
[1721584933197,0.1513563,3478.5,3477.9,2.87525]
[1721584933393,0.1513563,3478.5,3478.0,3.55]
[1721584933813,0.1513563,3478.5,3478.0,0.55]
[1721584934027,0.1513563,3478.5,3477.8,3.0]
[1721584934243,0.1513563,3478.5,3478.0,2.87519]
[1721584934541,0.1513563,3478.5,3478.1,6.162609]
[1721584934745,0.1513563,3478.5,3478.1,9.587699]
[1721584935050,0.1513563,3478.5,3478.1,6.42506]
[1721584935346,0.1513563,3478.5,3478.1,3.55]
[1721584935550,0.1513563,3478.5,3478.2,3.0]
[1721584935716,0.1513563,3478.5,3478.1,0.55]
[1721584936050,0.1513563,3478.5,3478.0,0.55]
[1721584936356,0.1513563,3478.5,3478.1,2.8751]
[1721584936509,0.1513563,3478.5,3478.2,3.0]
[1721584936917,0.1513563,3478.5,3478.0,3.55]
[1721584937339,0.1513563,3478.5,3478.0,6.42518]
[1721584937553,0.1513563,3478.5,3478.0,6.42514]
[1721584938320,0.1513563,3478.5,3478.3,2.87493]
[1721584938659,0.1513563,3478.5,3478.4,0.55]
[1721584938868,0.1513563,3478.5,3478.2,3.55]
[1721584939162,0.1513563,3478.5,3478.2,6.42501]
[1721584939320,0.1513563,3478.5,3478.3,2.87494]
[1721584939518,0.1513563,3478.5,3478.4,0.55]
[1721584939737,0.1513563,3478.5,3478.4,6.29976]
[1721584939939,0.1513563,3478.5,3478.4,10.229736]
[1721584940388,0.58254931,3480.4,3479.0,2.87434]
[1721584940530,0.58254931,3480.6,3479.1,0.55]
[1721584940729,2.93177878,3480.6,3479.1,3.55]
[1721584941059,3.45546931,3480.8,3479.3,2.87414]
[1721584941237,3.03056472,3480.7,3479.4,0.55]
[1721584941564,3.55436933,3480.7,3479.4,0.55]
[1721584942745,3.55436933,3480.7,3479.4,3.55]
[1721584943156,3.06714931,3481.0,3479.4,3.55]
[1721584943331,2.4846,3481.0,3479.7,2.87373]
[1721584943528,2.4846,3481.0,3479.8,3.55]
[1721584944227,2.87291,3480.8,3479.8,3.55]
[1721584944426,2.4846,3481.0,3479.8,0.55]
[1721584944427,5.35735,3481.0,3479.8,0.55]
[1721584944655,5.893085,3481.0,3479.6,0.55]
[1721584944861,5.893085,3481.0,3479.6,3.42386]
[1721584945065,3.020335,3481.0,3479.7,3.0]
[1721584945230,3.020335,3481.0,3479.8,0.55]
[1721584945928,2.4846,3481.0,3479.8,0.55]
[1721584946156,5.87223,3481.7,3479.8,3.42371]
[1721584946362,5.87223,3481.7,3480.3,2.8733]
[1721584946363,2.4846,3481.6,3480.3,2.8733]
[1721584946570,5.35684,3481.6,3479.9,5.87364]
[1721584946739,2.87251,3481.3,3480.0,1.192364]
[1721584947252,3.12078,3481.5,3480.0,1.192364]
[1721584947448,3.12078,3481.5,3480.1,2.8734]
[1721584947449,0.24846,3481.5,3480.1,2.8734]
[1721584947648,0.24846,3481.5,3480.2,3.55]
[1721584947884,0.24846,3481.5,3480.3,0.7065764]
[1721584948336,0.22317763,3482.0,3480.3,3.5798664]
[1721584948674,2.87218,3481.7,3480.4,5.3931]
[1721584950407,2.87308,3480.6,3479.2,2.3931]
[1721584950603,2.87332,3480.3,3478.6,2.3931]
[1721584950813,0.07183892,3480.5,3478.6,2.3931]
[1721584950814,2.87372,3479.9,3478.7,0.6197886]
[1721584950970,2.87372,3479.9,3478.6,2.3931]
[1721584950971,2.87382,3479.7,3478.6,2.3931]
[1721584951159,5.46348,3480.1,3478.6,2.3931]
[1721584951360,2.87356,3480.0,3478.6,2.3931]
[1721584951563,5.46348,3480.1,3478.0,2.3931]
[1721584951768,2.59,3480.1,3478.5,2.8748]
[1721584952006,2.59,3480.1,3476.8,4.2812]
[1721584952007,2.59,3479.6,3476.8,4.2812]
[1721584952221,2.87406,3479.4,3476.8,4.2812]
[1721584952371,2.87414,3479.3,3477.6,2.87548]
[1721584952736,2.87414,3479.3,3476.8,4.2812]
[1721584952737,2.87389,3479.6,3477.4,2.87564]
[1721584952868,2.87389,3479.6,3476.9,5.26919]
[1721584952869,0.51813557,3479.7,3477.5,0.287564]
[1721584953074,2.87455,3478.8,3477.4,2.87569]
[1721584953376,0.07187321,3478.7,3477.4,2.87569]
[1721584953704,2.8743,3479.1,3477.5,2.87561]
[1721584953911,2.8743,3479.1,3477.6,2.87553]
[1721584954074,2.87411,3479.4,3477.2,2.8758]
[1721584954278,3.39196557,3479.7,3476.9,2.3931]
[1721584954279,2.87383,3479.7,3478.2,2.87503]
[1721584954523,2.87391,3479.6,3478.0,2.87514]
[1721584954819,2.87456,3478.8,3477.3,0.28758]
[1721584955015,2.724,3478.4,3476.3,2.3931]
[1721584955227,2.724,3478.4,3476.2,2.8767]
[1721584955228,5.35993,3477.9,3476.2,2.8767]
[1721584955374,0.07189806,3477.8,3475.9,2.87689]
[1721584955570,0.07190369,3477.7,3475.7,5.2702]
[1721584955771,2.87543,3477.8,3476.0,2.87682]
[1721584955989,2.4846,3477.9,3476.1,2.87678]
[1721584956190,2.87589,3477.2,3475.7,5.27015]
[1721584956377,2.87589,3477.2,3475.7,2.3931]
[1721584956583,2.87637,3476.6,3475.0,2.3931]
[1721584956802,2.87615,3476.9,3475.0,5.27079]
[1721584956989,0.07192077,3477.0,3475.0,2.3931]
[1721584957208,2.87641,3476.6,3475.1,2.8776]
[1721584957738,2.87621,3476.8,3475.3,2.87744]
[1721584957900,3.4801999,3476.8,3475.4,0.287744]
[1721584958107,0.6039899,3476.8,3475.4,0.287744]
[1721584958401,2.87588,3477.2,3475.7,2.87711]
[1721584958790,2.87573,3477.4,3475.4,3.165064]
[1721584959141,2.87573,3477.4,3475.5,3.0]
[1721584959142,2.87587,3477.2,3475.5,3.0]
[1721584959302,2.87596,3477.1,3475.5,3.0]
[1721584959631,0.287596,3477.0,3475.6,0.55]
[1721584959823,3.0,3477.7,3475.7,2.87704]
[1721584960001,2.87604,3477.0,3475.8,3.0]
[1721584960205,2.724,3476.5,3474.5,2.87808]
[1721584960547,5.758,3476.5,3474.0,2.87851]
[1721584960746,2.8772,3475.6,3473.8,2.4072]
[1721584961027,2.94924865,3475.5,3473.9,3.11925]
[1721584961217,2.8773,3475.5,3474.0,2.87852]
[1721584961418,2.2924,3475.7,3474.1,2.87843]
[1721584961619,2.2924,3475.7,3473.9,0.24072]
[1721584961836,2.87736,3475.4,3473.9,3.11931]
[1721584961994,2.724,3475.1,3473.3,2.87905]
[1721584962189,2.87788,3474.8,3473.3,2.87905]
[1721584962495,0.07196216,3474.7,3473.3,2.87905]
[1721584962836,0.07196217,3475.0,3473.3,2.87905]
[1721584963032,3.32893086,3475.3,3473.2,2.4072]
[1721584963033,0.29493086,3475.3,3473.4,2.87896]
[1721584963195,0.29493086,3475.3,3473.5,2.87893]
[1721584963196,2.94967275,3475.0,3473.5,2.87893]
[1721584963391,0.31722909,3475.2,3473.6,2.87884]
[1721584963614,0.31722909,3475.2,3473.5,2.87893]
[1721584964005,0.31722909,3475.2,3473.6,3.55]
[1721584964204,0.29493086,3475.3,3473.8,2.87861]
[1721584964411,0.29493086,3475.3,3473.6,0.55]
[1721584964412,0.07195404,3475.2,3473.6,0.55]
[1721584964623,0.07195404,3475.2,3473.4,0.528616]
[1721584964624,2.87769,3475.0,3473.4,0.528616]
[1721584964835,2.87753,3475.2,3473.5,2.87893]
[1721584964996,2.87753,3475.2,3473.6,5.87885]
[1721584965196,0.62064609,3475.1,3473.6,5.87885]
[1721584965398,0.62064609,3475.1,3473.6,3.0]
[1721584965698,2.8773,3475.5,3474.0,2.87852]
[1721584965893,3.0,3475.4,3474.0,2.87852]
[1721584966119,3.0,3475.4,3474.2,2.87833]
[1721584966330,2.87687,3476.0,3474.3,2.87822]
[1721584966525,10.35658,3476.4,3474.4,3.0]
[1721584966526,2.8772,3475.6,3474.4,3.0]
[1721584966744,2.87696,3475.9,3474.2,3.0]
[1721584967031,2.87736,3475.4,3473.8,2.87862]
[1721584967194,2.87736,3475.4,3474.0,2.87852]
[1721584967395,0.07194922,3475.6,3473.8,2.87868]
[1721584967396,2.87746,3475.3,3473.8,2.87868]
[1721584967596,2.87746,3475.3,3473.9,3.0]
[1721584967796,0.287746,3475.2,3473.9,5.8786]
[1721584968405,0.287746,3475.2,3473.7,2.87876]
[1721584968406,2.79595539,3475.1,3473.7,2.87876]
[1721584968638,2.8777,3475.0,3473.3,2.87905]
[1721584968849,2.79595539,3475.1,3473.4,2.87901]
[1721584968850,2.94974229,3474.9,3473.4,2.87901]
[1721584969522,2.94974229,3474.9,3473.5,2.87893]
[1721584969721,0.07196616,3475.0,3473.6,2.87883]
[1721584969917,2.724,3475.1,3473.8,2.87867]
[1721584970329,2.724,3475.1,3473.6,2.87885]
[1721584970498,0.07195971,3475.0,3473.3,5.87909]
[1721584970699,2.724,3475.1,3473.3,3.0]
[1721584970945,2.724,3475.1,3473.0,2.8793]
[1721584970946,0.2724,3475.0,3473.7,2.87875]
[1721584971143,0.2724,3475.0,3473.8,3.0]
[1721584971351,2.87781,3474.9,3473.8,3.0]
[1721584971546,2.87781,3474.9,3473.6,3.0]
[1721584971842,3.22207621,3475.0,3473.5,5.87892]
[1721584972145,0.07196621,3475.0,3473.5,3.0]
[1721584972354,2.601,3474.1,3472.8,0.45131562]
[1721584972646,0.07196621,3475.0,3471.2,2.601]
[1721584972647,2.601,3473.6,3472.4,2.87984]
[1721584972853,0.547969,3473.5,3472.4,2.87984]
[1721584972998,0.547969,3473.5,3472.2,2.88001]
[1721584972999,2.2924,3474.3,3472.9,2.87942]
[1721584973205,2.601,3474.1,3472.9,2.87942]
[1721584973437,2.2924,3474.3,3472.2,0.45141756]
[1721584973605,2.601,3474.6,3472.3,2.87993]
[1721584973805,2.601,3474.6,3473.6,2.87877]
[1721584974060,2.2924,3474.9,3473.4,2.87894]
[1721584974262,2.87677,3476.2,3473.4,2.87894]
[1721584974263,2.2924,3475.5,3473.5,6.151]
[1721584974539,2.2924,3476.1,3473.8,2.87861]
[1721584974849,2.2924,3476.1,3474.8,2.87785]
[1721584975002,0.07193654,3476.0,3474.6,2.87801]
[1721584975203,2.36434213,3476.1,3474.6,2.87801]
[1721584975626,2.87737,3475.4,3474.3,3.0]
[1721584975801,5.635,3475.9,3473.5,0.55]
[1721584975802,2.87728,3475.6,3474.0,2.87844]
[1721584976139,2.87728,3475.6,3473.0,2.601]
[1721584976140,5.635,3475.4,3473.4,5.28621]
[1721584976342,2.87802,3474.7,3473.1,2.87924]
[1721584976546,5.96905845,3475.3,3473.6,2.87885]
[1721584976547,8.77459519,3475.3,3473.6,2.87885]
[1721584976707,3.0,3475.2,3473.8,2.87869]
[1721584977039,3.0,3475.2,3473.6,2.87885]
[1721584977224,2.86309519,3475.3,3474.0,2.87848]
[1721584977430,2.86309519,3475.3,3474.0,3.166328]
[1721584977616,2.2924,3475.3,3474.0,3.116328]
[1721584977940,5.601,3475.9,3474.0,3.116328]
[1721584977941,2.2924,3475.9,3474.4,2.87815]
[1721584978140,2.2924,3475.9,3474.5,0.55]
[1721584978353,2.2924,3475.9,3474.5,3.55]
[1721584978553,2.87736,3475.4,3473.7,2.87874]
[1721584978715,2.601,3475.5,3473.8,0.55]
[1721584978918,2.2924,3475.9,3474.1,2.87842]
[1721584979104,2.2924,3475.9,3473.8,0.55]
[1721584979105,2.87752,3475.3,3473.8,0.55]
[1721584979323,2.87752,3475.3,3473.1,5.0082]
[1721584979324,2.87779,3474.9,3473.2,2.87912]
[1721584979568,2.4839682,3474.8,3472.4,2.66023476]
[1721584979865,2.87813,3474.5,3472.5,0.31116523]
[1721584980162,2.95017785,3474.4,3472.9,2.87941]
[1721584980363,2.412,3474.8,3472.4,2.3271]
[1721584980575,2.412,3474.8,3472.5,2.87974]
[1721584980576,5.28986,3474.8,3472.5,2.87974]
[1721584980854,5.28986,3474.8,3473.1,2.87927]
[1721584981060,0.53618254,3474.7,3473.7,2.87875]
[1721584981246,2.412,3474.8,3473.4,2.87901]
[1721584981765,2.87835,3474.3,3472.8,5.75898]
[1721584981947,2.87835,3474.3,3472.9,3.0]
[1721584982157,2.87835,3474.3,3472.9,5.87942]
[1721584982331,2.87844,3474.1,3472.2,0.45141756]
[1721584982532,0.07198041,3474.0,3472.2,0.45141756]
[1721584982775,0.29503254,3474.2,3472.2,0.45141756]
[1721584983065,0.29503254,3474.2,3473.1,2.8792]
[1721584983229,2.412,3474.8,3473.6,2.87878]
[1721584983430,2.412,3474.8,3473.7,2.87874]
[1721584983671,7.48,3475.4,3474.1,2.87836]
[1721584983830,2.412,3475.6,3473.8,3.0]
[1721584984031,2.87658,3476.4,3473.5,2.87887]
[1721584984032,2.87668,3476.3,3474.0,2.3271]
[1721584984366,12.493,3476.5,3474.4,2.87819]
[1721584984367,0.07193613,3476.4,3474.4,2.87819]
[1721584984667,2.87655,3476.4,3474.6,2.87802]
[1721584984834,9.892,3476.5,3474.1,2.601]
[1721584985030,9.892,3476.5,3474.0,5.3271]
[1721584985031,7.48,3476.5,3475.5,2.87727]
[1721584985234,2.4192,3477.2,3476.1,2.87676]
[1721584985432,2.4192,3477.2,3476.2,2.87669]
[1721584985687,2.4192,3477.8,3476.3,2.87659]
[1721584985832,2.4192,3477.8,3476.5,2.87645]
[1721584986028,2.4192,3477.8,3476.4,3.0]
[1721584986272,2.4192,3477.8,3476.4,5.87653]
[1721584986273,0.24192,3477.7,3476.4,5.87653]
[1721584986482,0.24192,3477.7,3476.4,3.0]
[1721584986684,0.24192,3477.7,3475.6,5.47819]
[1721584986685,2.87565,3477.5,3476.3,3.0]
[1721584986838,2.87588,3477.2,3475.7,3.0]
[1721584987036,2.87613,3476.9,3475.4,2.87731]
[1721584987341,0.07191923,3476.8,3475.5,3.55]
[1721584987546,0.2947787,3477.1,3475.5,3.55]
[1721584987769,3.0,3477.4,3475.9,2.87692]
[1721584987990,3.0,3477.4,3475.7,2.8771]
[1721584988287,2.87588,3477.2,3475.8,3.55]
[1721584988582,3.0,3477.4,3475.8,3.55]
[1721584988871,6.18930341,3477.7,3476.1,2.8767]
[1721584989088,2.87596,3477.1,3475.8,3.0]
[1721584989294,2.87596,3477.1,3475.6,2.87719]
[1721584989295,0.07191924,3477.0,3474.4,2.78705124]
[1721584989502,2.8763,3476.7,3475.1,2.87758]
[1721584989670,2.4192,3476.9,3475.3,2.87742]
[1721584990005,2.4192,3476.9,3474.4,2.4122]
[1721584990006,2.4192,3476.9,3475.6,2.8772]
[1721584990204,2.4192,3476.9,3475.2,2.87745]
[1721584990205,2.87631,3476.7,3475.2,2.87745]
[1721584990494,2.94829666,3476.6,3475.3,3.0]
[1721584990854,2.4192,3476.9,3475.3,3.0]
[1721584991098,0.529531,3476.8,3475.6,2.87719]
[1721584991303,0.07192233,3476.7,3475.3,3.0]
[1721584991458,2.4192,3476.9,3475.3,2.87737]
[1721584991459,5.29534,3476.9,3475.3,2.87737]
[1721584991656,5.29534,3476.9,3475.4,5.87736]
[1721584991960,2.4192,3477.6,3475.9,2.87689]
[1721584992155,2.4192,3477.6,3476.3,2.87661]
[1721584992407,2.4192,3477.6,3476.0,0.55]
[1721584992699,0.07191011,3477.5,3476.0,0.55]
[1721584993018,5.90981,3477.3,3475.7,3.0]
[1721584993198,2.87589,3477.2,3475.4,5.87734]
[1721584993499,2.8757,3477.5,3476.0,2.8768]
[1721584993660,2.87586,3477.3,3475.8,2.87703]
[1721584993861,5.7514,3477.5,3475.9,6.42693]
[1721584994060,5.98159091,3477.5,3475.9,3.0]
[1721584994338,5.98159091,3477.5,3475.4,2.8773]
[1721584994339,2.87596,3477.1,3475.7,2.87708]
[1721584994519,2.87596,3477.1,3475.4,2.8773]
[1721584994520,2.87596,3477.1,3475.8,3.0]
[1721584994718,0.287596,3477.0,3475.7,3.0]
[1721584994923,2.87629,3476.7,3475.5,3.0]
[1721584995137,2.87629,3476.7,3474.9,2.87777]
[1721584995138,2.4192,3476.6,3474.9,2.87777]
[1721584995339,2.87663,3476.3,3474.9,2.87777]
[1721584995556,2.87663,3476.3,3474.7,2.87794]
[1721584995557,2.87679,3476.1,3474.7,2.87794]
[1721584995706,0.58253555,3476.0,3474.8,2.87784]
[1721584995906,0.58253555,3476.0,3474.5,2.87803]
[1721584995907,0.07193686,3475.9,3474.5,2.87803]
[1721584996319,0.58253555,3476.0,3474.7,2.87793]
[1721584996519,0.58253555,3476.0,3474.8,2.87784]
[1721584996769,0.07193686,3475.9,3474.2,2.87835]
[1721584996949,2.87688,3476.0,3474.6,2.87795]
[1721584997252,2.87721,3475.6,3474.1,2.87837]
[1721584997409,0.07193686,3475.9,3474.5,2.8781]
[1721584997609,0.07193686,3475.9,3473.9,2.7122]
[1721584997610,0.07194413,3475.8,3473.9,2.87855]
[1721584997837,0.07194413,3475.8,3473.3,2.78705124]
[1721584997838,2.87754,3475.2,3473.6,2.87879]
[1721584998039,2.4192,3475.4,3473.0,2.87931]
[1721584998040,2.87794,3474.8,3473.0,2.87928]
[1721584998254,5.4532,3475.4,3473.0,2.87928]
[1721584998255,0.07196129,3474.7,3473.0,2.87927]
[1721584998422,2.87845,3474.1,3472.4,2.87978]
[1721584998814,2.4981,3474.2,3472.8,2.87951]
[1721584999013,2.4981,3474.2,3472.0,2.4122]
[1721584999014,0.76105775,3474.1,3472.2,3.33141756]
[1721584999211,2.4981,3474.2,3473.0,2.87935]
[1721584999425,5.37646,3474.2,3472.5,2.8797]
[1721584999749,3.034,3474.8,3472.2,0.45141756]
[1721584999750,2.87804,3474.6,3473.1,2.87925]
[1721585000057,8.41003,3474.8,3472.2,0.45141756]
[1721585000058,2.87827,3474.3,3472.9,2.87943]
[1721585000240,2.87819,3474.4,3472.9,2.87943]
[1721585000416,2.87819,3474.4,3472.6,2.87967]
[1721585000417,2.87841,3474.2,3472.4,2.87983]
[1721585000643,0.57563,3474.3,3472.9,2.87942]
[1721585001274,0.57563,3474.3,3472.2,0.45141756]
[1721585001541,3.0,3474.6,3472.4,2.87985]
[1721585001742,1.00113062,3474.5,3472.6,2.87961]
[1721585001982,0.65452676,3474.4,3472.2,3.33140756]
[1721585002142,2.87887,3473.6,3472.2,0.45141756]
[1721585002341,0.07198485,3473.5,3472.2,0.45141756]
[1721585002576,0.29508549,3473.4,3472.2,3.33135756]
[1721585002753,5.91242,3474.2,3472.2,3.33135756]
[1721585002754,3.46096931,3474.2,3472.6,2.87966]
[1721585002971,3.0,3474.1,3472.8,2.87948]
[1721585003164,2.87838,3474.2,3472.5,2.87968]
[1721585003369,2.87838,3474.2,3472.2,3.45141756]
[1721585003370,3.0,3474.1,3472.2,3.45141756]
[1721585003572,3.07198298,3474.1,3472.4,2.87984]
[1721585003773,3.07198298,3474.1,3472.5,3.0]
[1721585003774,3.49939806,3474.0,3472.5,3.0]
[1721585003974,0.07198486,3473.9,3472.2,3.0]
[1721585004344,2.87909,3473.4,3472.0,3.0]
[1721585004569,2.87875,3473.8,3472.0,3.0]
[1721585004790,2.87875,3473.8,3472.2,2.87999]
[1721585004999,2.87894,3473.5,3472.3,3.0]
[1721585005287,2.87904,3473.4,3472.1,3.0]
[1721585005480,2.8787,3473.8,3472.1,3.0]
[1721585005790,5.37664,3474.0,3472.2,0.55]
[1721585005989,5.37664,3474.0,3472.3,2.87985]
[1721585006175,5.37664,3474.0,3472.4,3.55]
[1721585006372,5.37664,3474.0,3472.4,3.0]
[1721585006373,2.87911,3473.3,3472.4,3.0]
[1721585006549,2.87935,3473.0,3471.2,2.88082]
[1721585006897,2.87935,3473.0,3471.6,2.88049]
[1721585007260,2.87935,3473.0,3470.8,2.8811]
[1721585007261,2.87955,3472.8,3471.4,0.45144869]
[1721585007582,0.65508884,3472.7,3471.4,2.88068]
[1721585007782,0.65508884,3472.7,3470.9,2.88102]
[1721585007783,2.87976,3472.6,3470.9,2.88102]
[1721585007983,2.87977,3472.5,3471.1,2.88092]
[1721585008220,2.87977,3472.5,3470.6,3.33283578]
[1721585008363,0.07201477,3472.4,3470.6,3.33283578]
[1721585008565,0.29517848,3472.3,3470.9,2.88109]
[1721585008965,0.29517848,3472.3,3470.7,0.33328358]
[1721585008966,2.88019,3472.0,3470.6,3.33284578]
[1721585009199,0.29517848,3472.3,3470.6,0.45156578]
[1721585009200,2.95235863,3471.9,3470.6,0.45156578]
[1721585009516,2.8801,3472.1,3470.6,3.33289578]
[1721585009673,2.8801,3472.1,3470.6,2.88133]
[1721585009873,0.62813047,3472.0,3470.7,2.88124]
[1721585010200,0.62813047,3472.0,3470.4,2.88143]
[1721585010201,0.62813047,3472.0,3470.6,2.88132]
[1721585010413,3.50839047,3472.0,3470.5,2.8814]
[1721585010982,2.88043,3471.7,3470.3,2.88157]
[1721585011308,0.0720262,3471.9,3470.4,2.8815]
[1721585011511,0.35803467,3471.8,3470.4,2.8815]
[1721585012211,0.35803467,3471.8,3469.9,2.88191]
[1721585012374,0.0720264,3472.1,3469.6,2.86001178]
[1721585012375,2.88027,3471.9,3470.4,2.88148]
[1721585012571,2.88027,3471.9,3470.0,3.55]
[1721585012572,2.88027,3471.9,3470.3,2.88156]
[1721585012912,2.88027,3471.9,3470.5,2.88142]
[1721585013123,2.88027,3471.9,3470.4,5.8815]